bitfinex/quotes_SOLUSD_20250108
["timestamp","ask_amount","ask_price","bid_price","bid_amount"]
[1736344082957,20.0,197.21,197.17,137.1]
[1736344083574,0.95090141,197.23,197.17,137.1]
[1736344083736,20.0,197.24,197.17,137.1]
[1736344083940,0.95086361,197.23,197.17,137.1]
[1736344085067,24.72773425,197.24,197.17,137.1]
[1736344085371,0.95085025,197.24,197.17,137.1]
[1736344086368,20.0,197.22,197.17,137.1]
[1736344086531,20.0,197.22,197.17,134.98280917]
[1736344087535,0.95090306,197.21,197.17,134.98280917]
[1736344087756,23.776884,197.22,197.13,182.78]
[1736344087960,0.95094525,197.21,197.13,182.78]
[1736344088170,20.0,197.19,197.13,182.78]
[1736344089274,0.95094525,197.21,197.13,137.1]
[1736344089484,2.0363244,197.22,197.13,137.1]
[1736344089771,0.95085766,197.24,197.13,137.1]
[1736344092077,23.776884,197.23,197.13,137.1]
[1736344092382,0.95101886,197.22,197.13,137.1]
[1736344092566,20.0,197.21,197.13,137.1]
[1736344092872,0.95101182,197.2,197.13,137.1]
[1736344097694,20.0,197.21,197.13,137.1]
[1736344098193,0.95093786,197.2,197.13,137.1]
[1736344099670,23.776884,197.19,197.12,1.5013]
[1736344099880,20.0,197.16,197.07,144.9561]
[1736344100284,20.0,197.18,197.08,0.38569373]
[1736344102792,22.0300984,197.21,197.1,23.776884]
[1736344103101,22.0300984,197.21,197.11,137.48519201]
[1736344103296,2.0300984,197.21,197.12,2.42]
[1736344103489,0.95097785,197.23,197.12,139.52]
[1736344104089,20.312336,197.25,197.15,143.1179]
[1736344104283,0.95083266,197.28,197.16,137.48487082]
[1736344104476,20.0,197.27,197.17,0.38472734]
[1736344104810,0.95066801,197.26,197.16,137.1]
[1736344105185,20.0,197.22,197.16,137.1]
[1736344105874,0.95090492,197.24,197.16,137.1]
[1736344106075,20.0,197.26,197.16,137.1]
[1736344106277,0.9507582,197.27,197.16,137.1]
[1736344106878,20.0,197.26,197.16,137.1]
[1736344107086,0.95079044,197.25,197.16,137.1]
[1736344109001,20.0,197.22,197.16,137.1]
[1736344109301,0.95097379,197.21,197.16,137.1]
[1736344111225,43.776884,197.2,197.1,137.1]
[1736344111396,23.776884,197.18,197.1,137.1]
[1736344111600,20.0,197.15,197.1,137.1]
[1736344112595,0.95119861,197.14,197.1,137.1]
[1736344112922,0.95119861,197.14,197.1,132.63258663]
[1736344113109,20.0,197.1,197.05,132.63258663]
[1736344113294,0.95150757,197.09,197.01,6.2351]
[1736344113494,0.95150757,197.09,197.05,137.1]
[1736344113802,0.95150757,197.09,197.01,6.2351]
[1736344113803,0.95150757,197.09,197.01,143.3351]
[1736344114518,0.95148791,197.12,197.02,0.38647583]
[1736344114723,20.0,197.1,197.01,143.3351]
[1736344114900,20.0,197.1,197.02,0.38630553]
[1736344115104,20.0,197.1,197.01,143.3351]
[1736344115303,2.08976059,197.12,197.02,0.3863028]
[1736344115500,0.95134187,197.15,197.03,139.52]
[1736344115725,20.0,197.11,197.03,139.52]
[1736344117499,0.95133685,197.13,197.03,139.52]
[1736344117700,0.95128033,197.15,197.04,0.38606066]
[1736344118002,0.95128033,197.15,197.04,137.48606066]
[1736344118204,0.95128033,197.15,197.04,137.1]
[1736344118703,20.0,197.16,197.04,137.1]
[1736344118920,0.95127443,197.15,197.04,137.1]
[1736344119226,20.0,197.11,197.04,137.1]
[1736344122023,20.0,197.16,197.04,137.1]
[1736344122240,0.951292,197.15,197.04,137.1]
[1736344123919,20.0,197.11,197.04,137.1]
[1736344124419,20.0,197.13,197.04,137.1]
[1736344124625,0.95135469,197.12,197.04,137.1]
[1736344124824,20.0,197.13,197.04,137.1]
[1736344125711,0.9513421,197.12,197.04,137.1]
[1736344127598,3.3713421,197.12,197.04,137.1]
[1736344127908,20.0,197.09,197.04,137.1]
[1736344128106,0.95155755,197.08,197.04,137.1]
[1736344128309,0.95155755,197.08,196.99,138.6146]
[1736344129143,20.0,197.09,196.99,138.6146]
[1736344129936,0.95149106,197.08,196.99,138.6146]
[1736344133922,20.95149106,197.08,196.99,138.6146]
[1736344139842,20.0,197.08,196.99,138.6146]
[1736344140215,20.0,197.08,197.0,0.38643887]
[1736344141140,2.56103322,197.15,197.03,9.90666012]
[1736344141347,20.0,197.13,197.04,137.4859421]
[1736344141646,4.57960263,197.15,197.05,137.48596818]
[1736344141828,2.01856941,197.15,197.06,0.38580468]
[1736344142145,20.0,197.14,197.06,0.38580468]
[1736344142362,20.0,197.14,197.05,137.1]
[1736344142530,0.95113833,197.15,197.05,137.1]
[1736344142735,2.07290451,197.17,197.07,1.5788]
[1736344142917,0.95122218,197.18,197.08,137.48568664]
[1736344143116,1.6096,197.2,197.09,2.42]
[1736344143117,2.02111795,197.19,197.09,2.42]
[1736344143326,6.4886,197.22,197.1,10.29208726]
[1736344143522,6.4886,197.22,197.1,137.48542714]
[1736344143739,0.95088489,197.21,197.11,0.3853683]
[1736344144058,0.95089403,197.24,197.11,147.39202842]
[1736344144253,0.95089403,197.24,197.11,137.1]
[1736344144425,23.776884,197.23,197.11,137.1]
[1736344144629,20.0,197.2,197.11,137.1]
[1736344145938,20.0,197.2,197.11,139.52]
[1736344146543,20.0,197.2,197.12,0.38528092]
[1736344147542,20.0,197.2,197.11,139.52]
[1736344149473,0.95097119,197.22,197.11,139.52]
[1736344149633,2.03469109,197.23,197.12,39.620237]
[1736344149834,1.5341,197.25,197.12,39.620237]
[1736344150039,20.0,197.24,197.12,39.620237]
[1736344150242,0.95076491,197.26,197.13,1.514]
[1736344150443,0.95076491,197.26,197.14,0.38488897]
[1736344150653,20.0,197.24,197.14,0.38488897]
[1736344152141,0.95076176,197.23,197.13,1.514]
[1736344153045,20.0,197.2,197.13,138.614]
[1736344153654,2.42,197.2,197.13,138.614]
[1736344155546,20.0,197.24,197.14,137.48531775]
[1736344155746,20.0,197.24,197.14,137.1]
[1736344155948,20.0,197.24,197.15,0.38492495]
[1736344156264,20.0,197.24,197.15,137.48492495]
[1736344158146,0.95058493,197.28,197.18,0.38470072]
[1736344159648,0.95058493,197.28,197.17,137.1]
[1736344160874,20.95059123,197.29,197.18,0.38468247]
[1736344161062,20.0,197.29,197.19,6.1011]
[1736344161257,20.0,197.29,197.21,138.6204]
[1736344161454,2.00356256,197.3,197.22,0.38440244]
[1736344161760,0.95036239,197.34,197.22,137.48440244]
[1736344161972,0.95036239,197.34,197.22,137.1]
[1736344162285,0.95036239,197.34,197.23,0.38411419]
[1736344162776,0.95036239,197.34,197.23,137.48411419]
[1736344163077,20.0,197.33,197.23,137.1]
[1736344163387,0.95038133,197.32,197.23,137.1]
[1736344163547,23.776884,197.32,197.23,137.1]
[1736344163867,0.95057396,197.31,197.23,137.1]
[1736344165879,20.0,197.29,197.23,137.1]
[1736344166187,0.9505706,197.28,197.23,137.1]
[1736344166860,20.9505706,197.28,197.23,137.1]
[1736344167059,20.0,197.27,197.16,138.7655]
[1736344167265,0.9507716,197.26,197.16,138.7655]
[1736344169657,22.08724373,197.27,197.17,0.38488373]
[1736344169858,0.95058565,197.31,197.19,15.45805167]
[1736344170062,0.95044084,197.34,197.2,18.24243335]
[1736344170468,20.0,197.32,197.2,18.24243335]
[1736344171260,20.0,197.32,197.2,2.78438168]
[1736344171879,20.0,197.3,197.2,2.78438168]
[1736344172073,20.0,197.3,197.2,139.88438168]
[1736344172394,20.0,197.3,197.2,139.5]
[1736344172566,20.0,197.3,197.21,0.38437253]
[1736344174386,20.0,197.3,197.2,139.5]
[1736344174766,0.95050361,197.29,197.2,139.5]
[1736344175853,0.95050361,197.29,197.2,137.1]
[1736344177757,2.98038929,197.29,197.2,137.1]
[1736344177960,0.95050361,197.29,197.2,137.1]
[1736344179774,5.39559527,197.3,197.2,137.1]
[1736344179979,2.04509263,197.3,197.21,0.38450529]
[1736344180166,0.95045751,197.34,197.21,137.48450529]
[1736344180370,0.95045751,197.34,197.21,152.55805167]
[1736344180761,0.95045751,197.34,197.21,137.1]
[1736344180961,20.0,197.32,197.21,137.1]
[1736344181975,20.0,197.32,197.22,0.38431297]
[1736344186460,20.0,197.32,197.22,137.48431297]
[1736344186667,20.0,197.32,197.22,137.1]
[1736344188972,5.0,197.4,197.22,137.1]
[1736344188973,8.65137458,197.41,197.27,15.45805167]
[1736344189178,8.65137458,197.41,197.28,18.24155508]
[1736344189374,7.701,197.41,197.28,18.24155508]
[1736344189673,2.99079944,197.42,197.29,154.18685167]
[1736344189915,2.99079944,197.42,197.3,0.38336026]
[1736344190403,2.04079774,197.42,197.3,6.78326026]
[1736344190585,0.949921,197.42,197.3,6.78326026]
[1736344190971,20.0,197.38,197.3,143.4999]
[1736344192602,0.95008468,197.37,197.3,137.1]
[1736344192810,20.0,197.38,197.3,137.1]
[1736344193385,0.95012449,197.37,197.3,137.1]
[1736344193585,20.95014592,197.38,197.3,137.1]
[1736344193982,20.0,197.38,197.3,137.1]
[1736344195877,22.04190872,197.38,197.3,137.1]
[1736344196513,0.95000982,197.45,197.31,137.48351964]
[1736344196817,20.0,197.41,197.31,137.1]
[1736344196985,20.0,197.41,197.32,0.38325695]
[1736344197187,20.94987847,197.43,197.32,0.38325695]
[1736344197387,20.94987847,197.43,197.31,137.1]
[1736344197795,23.776884,197.42,197.31,137.1]
[1736344197996,20.0,197.39,197.31,137.1]
[1736344200520,8.65096574,197.46,197.32,137.48343149]
[1736344200689,20.0,197.42,197.32,137.1]
[1736344200879,0.94984279,197.41,197.32,137.1]
[1736344201294,20.0,197.37,197.32,137.1]
[1736344201615,0.95020407,197.36,197.32,137.1]
[1736344201927,0.95020407,197.36,197.29,137.1]
[1736344202250,43.776884,197.35,197.25,138.6438]
[1736344202465,23.776884,197.33,197.25,138.6438]
[1736344202719,20.0,197.35,197.25,138.6438]
[1736344202922,20.95025063,197.35,197.25,138.6438]
[1736344203419,20.0,197.35,197.25,138.6438]
[1736344203637,0.95026312,197.37,197.26,0.38387873]
[1736344203800,0.95013412,197.4,197.26,137.48387873]
[1736344203993,2.07341824,197.41,197.29,152.55805167]
[1736344204327,20.0,197.4,197.31,1.5438]
[1736344204512,7.92821422,197.43,197.31,1.5438]
[1736344204513,7.92821422,197.43,197.32,137.48325137]
[1736344204697,2.52213762,197.44,197.32,137.1]
[1736344204698,0.94993762,197.44,197.32,137.1]
[1736344204897,20.0,197.43,197.32,137.1]
[1736344205323,0.94993762,197.44,197.32,137.1]
[1736344205521,23.776884,197.45,197.32,137.1]
[1736344205728,20.0,197.42,197.33,137.48319122]
[1736344206028,20.0,197.42,197.33,137.1]
[1736344208199,20.0,197.42,197.34,0.38318975]
[1736344208395,0.94983867,197.45,197.34,0.38318975]
[1736344208639,20.0,197.45,197.34,137.48318975]
[1736344208801,2.97237941,197.47,197.35,143.4851]
[1736344209000,0.94974373,197.47,197.36,137.48285185]
[1736344209310,0.94974373,197.47,197.37,2.4]
[1736344211028,0.94974373,197.47,197.37,139.5]
[1736344211715,20.0,197.43,197.37,137.1]
[1736344214309,20.0,197.5,197.37,137.1]
[1736344214507,0.94968348,197.49,197.38,1.5146]
[1736344215116,0.94968348,197.49,197.38,1.89745014]
[1736344215725,2.07595447,197.5,197.39,15.45805167]
[1736344216027,0.94946199,197.55,197.42,1.5846]
[1736344216248,0.94946199,197.55,197.43,2.4]
[1736344216427,0.94946199,197.55,197.44,0.38210088]
[1736344216635,10.90002051,197.57,197.44,15.84015255]
[1736344216833,10.90002051,197.57,197.44,152.94015255]
[1736344217016,20.0,197.54,197.45,39.23493567]
[1736344217222,2.02253142,197.57,197.47,1.5464]
[1736344217418,20.0,197.58,197.49,143.153]
[1736344217735,9.96958343,197.61,197.5,155.33964906]
[1736344217910,9.96958343,197.61,197.51,0.38133737]
[1736344218105,9.96958343,197.61,197.5,154.95805167]
[1736344218106,20.0,197.58,197.5,139.5]
[1736344218532,20.0,197.58,197.51,0.38159501]
[1736344218736,2.04136921,197.61,197.51,0.38159501]
[1736344218905,0.94904751,197.62,197.51,0.38159501]
[1736344219104,0.94904751,197.62,197.5,139.5]
[1736344219336,0.94904751,197.62,197.5,137.1]
[1736344219337,23.776884,197.61,197.5,137.1]
[1736344219512,20.0,197.58,197.5,137.1]
[1736344220428,20.0,197.62,197.51,0.38162973]
[1736344221020,20.0,197.62,197.51,137.48162973]
[1736344221336,20.0,197.62,197.51,137.1]
[1736344221532,0.94894238,197.64,197.52,0.38139087]
[1736344222239,0.94894238,197.64,197.53,1.5656]
[1736344223223,2.9796693,197.65,197.54,0.38129016]
[1736344223531,0.94889508,197.65,197.53,1.94673332]
[1736344223834,20.0,197.67,197.53,139.04673332]
[1736344224038,0.94880787,197.68,197.56,6.2848]
[1736344224336,3.00382381,197.7,197.57,139.88074936]
[1736344224639,0.94861887,197.74,197.59,1.5216]
[1736344224820,0.94861887,197.74,197.59,1.90228354]
[1736344225131,0.94861887,197.74,197.59,154.46033521]
[1736344225329,0.94861887,197.74,197.59,154.07965167]
[1736344225535,0.94861887,197.74,197.6,0.38043102]
[1736344226032,20.94861887,197.74,197.6,24.15731502]
[1736344226218,0.94861887,197.74,197.6,39.61536669]
[1736344226528,0.94846285,197.73,197.6,24.15731502]
[1736344227316,0.94845784,197.74,197.6,24.15731502]
[1736344227524,0.94845784,197.74,197.6,0.38043102]
[1736344227727,20.0,197.7,197.6,137.1]
[1736344227922,0.94861257,197.69,197.6,137.1]
[1736344231053,20.0,197.65,197.6,137.1]
[1736344231431,0.94877616,197.64,197.6,137.1]
[1736344231823,0.94877616,197.64,197.56,143.3848]
[1736344232770,26.176884,197.63,197.55,136.966]
[1736344233058,20.0,197.59,197.55,136.966]
[1736344233560,0.94909361,197.62,197.55,136.966]
[1736344233728,20.0,197.59,197.55,136.966]
[1736344234358,20.0,197.58,197.55,136.966]
[1736344237626,20.0,197.58,197.55,136.9392]
[1736344237831,0.94911665,197.57,197.55,119.51527569]
[1736344238046,20.0,197.58,197.55,119.51527569]
[1736344240432,0.94916617,197.57,197.51,121.13367569]
[1736344240958,20.0,197.53,197.46,127.52607569]
[1736344242663,0.94938067,197.52,197.46,121.13037569]
[1736344243445,23.776884,197.51,197.41,127.66487569]
[1736344243658,0.94959039,197.5,197.41,127.66487569]
[1736344244546,20.0,197.48,197.41,127.66487569]
[1736344244747,0.94965574,197.47,197.41,127.66487569]
[1736344245673,20.0,197.48,197.41,127.66487569]
[1736344246570,0.94956609,197.47,197.41,127.66487569]
[1736344247137,0.94956609,197.47,197.37,47.1394]
[1736344247364,0.94956609,197.47,197.37,184.2394]
[1736344249555,20.0,197.43,197.37,184.2394]
[1736344249971,0.94987511,197.42,197.37,184.2394]
[1736344250347,20.0,197.43,197.37,184.2394]
[1736344251651,22.06014934,197.43,197.37,184.2394]
[1736344254288,0.94984774,197.42,197.37,184.2394]
[1736344254500,0.94984774,197.42,197.35,137.1]
[1736344255370,23.01012241,197.43,197.35,137.1]
[1736344256588,0.94989107,197.42,197.35,137.1]
[1736344258493,22.06014934,197.43,197.35,137.1]
[1736344259907,2.06014934,197.43,197.35,137.1]
[1736344260108,0.94980086,197.44,197.35,137.1]
[1736344260287,0.94980676,197.46,197.35,137.1]
[1736344260703,20.0,197.42,197.35,137.1]
[1736344260874,0.94995509,197.41,197.35,137.1]
[1736344261074,0.94995509,197.41,197.32,138.7075]
[1736344261276,20.94995509,197.41,197.32,138.7075]
[1736344262574,2.4,197.4,197.32,138.7075]
[1736344262775,0.9500387,197.39,197.32,138.7075]
[1736344263678,0.9500387,197.39,197.32,137.1]
[1736344264190,20.0,197.35,197.32,137.1]
[1736344265702,0.95022086,197.34,197.32,137.1]
[1736344265900,0.95022086,197.34,197.27,138.6575]
[1736344266318,20.95031995,197.35,197.27,138.6575]
[1736344266622,20.0,197.35,197.27,138.6575]
[1736344266830,20.95020938,197.35,197.27,138.6575]
[1736344267331,20.95020938,197.35,197.27,137.1]
[1736344267491,20.0,197.31,197.27,137.1]
[1736344270218,0.95045027,197.3,197.22,138.6992]
[1736344274452,20.0,197.31,197.23,2.4]
[1736344275437,0.9504145,197.3,197.22,138.6992]
[1736344276139,20.0,197.26,197.17,138.736]
[1736344277731,0.95071993,197.28,197.17,138.736]
[1736344278037,20.0,197.27,197.18,137.48463404]
[1736344278218,20.0,197.27,197.18,137.1]
[1736344278825,20.0,197.27,197.19,0.38455735]
[1736344279135,2.05957738,197.31,197.19,0.38455735]
[1736344279336,0.9504334,197.32,197.19,0.38455735]
[1736344279940,21.2545734,197.32,197.19,0.38455735]
[1736344280451,20.0,197.28,197.18,139.5]
[1736344280632,0.9506355,197.27,197.18,139.5]
[1736344281528,20.0,197.29,197.19,0.38464689]
[1736344282337,20.0,197.29,197.19,137.48464689]
[1736344282531,20.0,197.29,197.19,137.1]
[1736344282733,20.0,197.29,197.2,0.38440516]
[1736344283942,0.95047229,197.31,197.19,137.1]
[1736344283943,20.95049629,197.28,197.19,137.1]
[1736344284344,20.0,197.28,197.19,137.1]
[1736344284528,20.0,197.28,197.2,0.38448006]
[1736344285348,0.95057568,197.3,197.2,0.38448006]
[1736344285552,20.0,197.29,197.19,137.1]
[1736344286326,20.0,197.29,197.2,0.38454103]
[1736344288227,21.99091522,197.33,197.2,137.48454103]
[1736344288449,20.95039609,197.32,197.2,137.1]
[1736344288648,20.0,197.3,197.21,0.38430125]
[1736344290838,20.0,197.3,197.2,137.1]
[1736344291371,0.95045735,197.29,197.2,137.1]
[1736344291667,20.0,197.25,197.2,137.1]
[1736344296239,22.03743861,197.25,197.2,137.1]
[1736344298470,20.0,197.3,197.2,137.1]
[1736344298676,0.95057671,197.29,197.2,137.1]
[1736344299161,20.0,197.3,197.2,137.1]
[1736344299369,0.95057931,197.32,197.21,137.48440934]
[1736344299576,20.303343,197.33,197.21,137.1]
[1736344299859,23.776884,197.34,197.22,137.48418571]
[1736344300064,0.95034898,197.33,197.22,137.1]
[1736344300238,0.95034898,197.33,197.23,0.38419604]
[1736344300447,0.95034898,197.33,197.24,1.522]
[1736344300659,20.0,197.31,197.24,138.622]
[1736344301063,0.9503817,197.3,197.24,138.622]
[1736344301237,0.9503817,197.3,197.24,137.1]
[1736344302853,20.0,197.31,197.24,137.1]
[1736344304573,0.95047036,197.3,197.24,137.1]
[1736344304874,20.95048877,197.31,197.24,137.1]
[1736344305952,0.95048002,197.3,197.24,137.1]
[1736344308175,22.00723954,197.31,197.24,137.1]
[1736344308672,0.95046559,197.3,197.24,137.1]
[1736344309845,20.0,197.26,197.24,137.1]
[1736344310051,20.0,197.24,197.19,138.6162]
[1736344310253,20.0,197.24,197.19,137.1]
[1736344313056,22.02601342,197.24,197.19,137.1]
[1736344314852,0.95076522,197.23,197.19,137.1]
[1736344317777,0.95076522,197.23,197.15,1.5818]
[1736344317778,0.95076522,197.23,197.16,137.1]
[1736344320673,23.776884,197.22,197.16,137.1]
[1736344320894,20.0,197.19,197.16,137.1]
[1736344322071,20.0,197.19,197.1,1.6611]
[1736344322072,20.0,197.15,197.11,137.1]
[1736344322867,20.0,197.17,197.11,137.1]
[1736344323381,8.87920827,197.23,197.13,1.5356]
[1736344323579,0.95080256,197.24,197.13,1.5356]
[1736344323779,0.95080256,197.24,197.14,0.38509692]
[1736344324287,20.0,197.23,197.14,0.38509692]
[1736344324465,2.07133564,197.25,197.15,6.3118]
[1736344324659,8.87892336,197.29,197.15,6.3118]
[1736344324660,8.87892336,197.29,197.16,0.3848083]
[1736344324867,8.87892336,197.29,197.16,137.4848083]
[1736344325184,23.776884,197.28,197.16,137.1]
[1736344325374,0.95065563,197.27,197.16,137.1]
[1736344325581,20.0,197.25,197.16,137.1]
[1736344325874,0.95065563,197.27,197.16,137.1]
[1736344326182,20.0,197.25,197.16,137.1]
[1736344326393,0.9508162,197.24,197.16,137.1]
[1736344326791,0.95075399,197.24,197.16,137.1]
[1736344327491,20.95076032,197.25,197.16,137.1]
[1736344328412,0.95077455,197.24,197.16,137.1]
[1736344329000,20.0,197.2,197.16,137.1]
[1736344329225,0.95100018,197.19,197.13,138.6356]
[1736344329383,0.95100018,197.19,197.13,137.1]
[1736344331220,0.95100018,197.19,197.08,138.6738]
[1736344331391,20.0,197.15,197.08,138.6738]
[1736344332094,0.95123052,197.14,197.08,138.6738]
[1736344332297,0.95123052,197.14,197.08,137.1]
[1736344334617,0.95123052,197.14,197.05,137.1]
[1736344334820,20.0,197.1,197.05,137.1]
[1736344336471,2.4,197.16,197.05,137.1]
[1736344336619,20.0,197.11,197.05,137.1]
[1736344337513,0.95135686,197.1,197.05,137.1]
[1736344339330,0.95135686,197.1,197.03,137.1]
[1736344340267,22.07748686,197.11,197.03,137.1]
[1736344341863,2.07748686,197.11,197.03,137.1]
[1736344342066,20.0,197.11,197.03,137.1]
[1736344342447,2.4,197.16,197.04,0.38613293]
[1736344342738,0.95121207,197.15,197.04,137.48613293]
[1736344342973,2.4,197.2,197.05,1.5143]
[1736344343160,2.98087935,197.18,197.06,15.84369949]
[1736344343476,23.776884,197.18,197.06,0.38564782]
[1736344343650,20.0,197.15,197.06,0.38564782]
[1736344343995,0.95105787,197.19,197.06,152.94369949]
[1736344344184,3.01474664,197.19,197.07,6.5207]
[1736344344469,0.95102076,197.23,197.08,152.94352482]
[1736344344776,20.0,197.21,197.08,152.55805167]
[1736344344979,0.95102076,197.23,197.09,15.84339729]
[1736344345156,0.95102076,197.23,197.1,17.06525167]
[1736344345342,2.99736309,197.24,197.11,0.38514819]
[1736344345542,20.0,197.22,197.11,0.38514819]
[1736344345743,2.99736309,197.24,197.11,0.38514819]
[1736344346242,2.046539,197.24,197.11,0.38514819]
[1736344346558,20.0,197.23,197.11,0.38514819]
[1736344347050,20.0,197.21,197.11,0.38514819]
[1736344349955,20.0,197.21,197.11,0.38523608]
[1736344350287,2.00376456,197.23,197.11,152.94328775]
[1736344350500,22.4,197.26,197.11,152.55805167]
[1736344350501,0.95074837,197.25,197.11,152.55805167]
[1736344350661,20.950714,197.26,197.12,155.34297968]
[1736344350982,20.950714,197.26,197.12,154.95805167]
[1736344351179,20.950714,197.26,197.13,0.38489492]
[1736344351503,22.07010762,197.26,197.14,6.4305]
[1736344351652,22.07010762,197.26,197.15,0.38485193]
[1736344352559,0.95065836,197.25,197.14,6.81531672]
[1736344353784,0.95065836,197.25,197.14,143.91531672]
[1736344353969,0.95065836,197.25,197.14,143.5305]
[1736344355183,23.02083028,197.26,197.15,0.38494533]
[1736344355479,23.02083028,197.26,197.16,138.6821]
[1736344356192,20.0,197.22,197.16,138.6821]
[1736344359389,22.07010762,197.26,197.16,138.6821]
[1736344359593,0.9506857,197.25,197.16,138.6821]
[1736344362174,20.9506857,197.25,197.16,138.6821]
[1736344365893,44.7275697,197.25,197.16,138.6821]
[1736344366092,20.0,197.21,197.16,138.6821]
[1736344367586,20.0,197.21,197.16,137.1]
[1736344369174,0.95094819,197.2,197.11,138.6651]
[1736344371284,20.0,197.16,197.11,138.6651]
[1736344371493,20.0,197.16,197.11,137.1]
[1736344372279,0.95117251,197.15,197.11,137.1]
[1736344372804,20.0,197.16,197.11,137.1]
[1736344376406,22.0434799,197.16,197.11,137.1]
[1736344376606,0.95118113,197.15,197.11,137.1]
[1736344377106,22.99470035,197.16,197.11,137.1]
[1736344377703,20.0,197.12,197.07,138.7543]
[1736344378526,0.95118171,197.15,197.07,138.7543]
[1736344379216,2.0434799,197.16,197.07,138.7543]
[1736344379415,0.95122933,197.17,197.07,138.7543]
[1736344381823,2.01162401,197.18,197.08,0.38578245]
[1736344382011,23.776884,197.19,197.08,137.48578245]
[1736344382331,0.95114122,197.2,197.08,137.1]
[1736344382498,20.0,197.16,197.08,137.1]
[1736344382700,20.0,197.16,197.09,0.385543]
[1736344382999,20.0,197.16,197.08,137.1]
[1736344383804,0.9511738,197.15,197.08,137.1]
[1736344384211,20.0,197.16,197.08,137.1]
[1736344384629,0.95114186,197.15,197.08,137.1]
[1736344385627,20.0,197.16,197.08,137.1]
[1736344386105,2.00764592,197.2,197.09,137.48564698]
[1736344386304,0.95093424,197.22,197.09,137.1]
[1736344386516,1.99651284,197.23,197.11,22.06990991]
[1736344386714,20.95077054,197.22,197.13,138.6439]
[1736344387029,0.95077054,197.24,197.13,138.6439]
[1736344387524,20.0,197.23,197.13,138.6439]
[1736344389331,22.00835673,197.25,197.14,0.38508973]
[1736344389515,20.0,197.23,197.14,0.38508973]
[1736344391131,20.0,197.23,197.13,138.6439]
[1736344394800,20.0,197.18,197.13,138.6439]
[1736344396129,20.0,197.24,197.13,138.6439]
[1736344396316,0.95082987,197.23,197.13,138.6439]
[1736344397206,43.776884,197.24,197.13,138.6439]
[1736344397406,0.95083236,197.23,197.13,138.6439]
[1736344398725,0.95079415,197.24,197.13,138.6439]
[1736344399325,20.0,197.23,197.13,138.6439]
[1736344399510,0.95088373,197.22,197.13,138.6439]
[1736344401847,43.776884,197.21,197.13,138.6439]
[1736344402012,0.95101103,197.2,197.13,138.6439]
[1736344402518,20.0,197.16,197.13,138.6439]
[1736344404423,20.0,197.16,197.11,137.1]
[1736344404630,0.95109912,197.15,197.11,137.1]
[1736344405038,20.0,197.16,197.11,137.1]
[1736344406448,22.08186662,197.16,197.11,137.1]
[1736344406648,20.0,197.14,197.11,137.1]
[1736344406852,20.0,197.12,197.11,58.28282245]
[1736344407160,20.0,197.12,197.02,1.5077]
[1736344407367,20.0,197.08,197.02,50.89352245]
[1736344408733,20.0,197.08,197.02,1.5077]
[1736344410339,20.0,197.04,197.0,49.38582245]
[1736344410651,20.0,197.04,196.96,47.2336]
[1736344410652,0.95175789,197.03,196.96,96.61942245]
[1736344411358,3.35175789,197.03,196.96,96.61942245]
[1736344412457,19.9,197.04,196.96,99.01942245]
[1736344413228,0.95183311,197.06,196.96,99.01942245]
[1736344413544,2.02173839,197.06,196.97,49.77269064]
[1736344413725,23.776884,197.1,196.97,49.77269064]
[1736344413921,23.776884,197.08,196.97,49.77269064]
[1736344414122,0.95160933,197.07,196.97,49.77269064]
[1736344414754,20.0,197.03,196.97,49.38582245]